[Event "Early-Titled-Tuesday-Blitz-June-18-2024"]
[Site "Chess.com"]
[Date "2024.06.18"]
[Round "4"]
[White "romulocardoso"]
[Black "DvaHrasta"]
[Result "1/2-1/2"]
[WhiteElo "2332"]
[BlackElo "2512"]
[TimeControl "180+1"]
[EndTime "8:40:47 PDT"]
[Termination "Game drawn by repetition"]

1. e4 {[%clk 0:03:00.9]} 1... c6 {[%clk 0:02:59.6]} 2. d4 {[%clk 0:02:59.7]}
2... d5 {[%clk 0:02:59.6]} 3. Nc3 {[%clk 0:02:59.3]} 3... dxe4 {[%clk
0:02:59.4]} 4. Nxe4 {[%clk 0:03:00]} 4... Nf6 {[%clk 0:02:59.6]} 5. Nxf6+ {[%clk
0:03:00.6]} 5... exf6 {[%clk 0:03:00.5]} 6. Nf3 {[%clk 0:03:00.4]} 6... Bd6
{[%clk 0:03:00.6]} 7. Bd3 {[%clk 0:03:00.9]} 7... O-O {[%clk 0:03:00.7]} 8. O-O
{[%clk 0:02:55.9]} 8... Bg4 {[%clk 0:03:00.4]} 9. h3 {[%clk 0:02:56.4]} 9... Bh5
{[%clk 0:03:00.1]} 10. Be3 {[%clk 0:02:54.3]} 10... Re8 {[%clk 0:02:59.9]} 11.
Re1 {[%clk 0:02:54.4]} 11... Nd7 {[%clk 0:02:59.7]} 12. c4 {[%clk 0:02:53.4]}
12... c5 {[%clk 0:02:55]} 13. Be2 {[%clk 0:02:44.1]} 13... Qc7 {[%clk
0:02:50.1]} 14. a3 {[%clk 0:02:37.4]} 14... a5 {[%clk 0:02:47.1]} 15. Rc1 {[%clk
0:02:05.4]} 15... g5 {[%clk 0:02:46]} 16. Qd2 {[%clk 0:02:03.1]} 16... h6 {[%clk
0:02:37.9]} 17. dxc5 {[%clk 0:01:59.6]} 17... Nxc5 {[%clk 0:02:33.7]} 18. Nd4
{[%clk 0:02:00]} 18... Bxe2 {[%clk 0:02:13.1]} 19. Nb5 {[%clk 0:01:58.4]} 19...
Bh2+ {[%clk 0:02:02.8]} 20. Kh1 {[%clk 0:01:58.2]} 20... Qe5 {[%clk 0:01:21.3]}
21. Qxe2 {[%clk 0:01:39.1]} 21... Bf4 {[%clk 0:01:16.8]} 22. Rc2 {[%clk
0:01:29.8]} 22... a4 {[%clk 0:01:10.1]} 23. Bxf4 {[%clk 0:01:25.4]} 23... Qxf4
{[%clk 0:01:05.7]} 24. Qxe8+ {[%clk 0:01:03.2]} 24... Rxe8 {[%clk 0:01:04.7]}
25. Rxe8+ {[%clk 0:01:04.1]} 25... Kg7 {[%clk 0:01:05.1]} 26. Re7 {[%clk
0:01:03]} 26... b6 {[%clk 0:00:54.1]} 27. Nc7 {[%clk 0:00:42]} 27... h5 {[%clk
0:00:40.4]} 28. Nd5 {[%clk 0:00:41.6]} 28... Qf5 {[%clk 0:00:36.5]} 29. Rce2
{[%clk 0:00:40.5]} 29... Nd3 {[%clk 0:00:31.3]} 30. Kg1 {[%clk 0:00:31.6]} 30...
Nf4 {[%clk 0:00:28.5]} 31. Nxf4 {[%clk 0:00:31.3]} 31... Qxf4 {[%clk 0:00:28.8]}
32. Rb7 {[%clk 0:00:29.4]} 32... Qxc4 {[%clk 0:00:25.7]} 33. Ree7 {[%clk
0:00:27.3]} 33... Qc1+ {[%clk 0:00:25.6]} 34. Kh2 {[%clk 0:00:27.3]} 34... Qf4+
{[%clk 0:00:21.4]} 35. Kg1 {[%clk 0:00:25.7]} 35... Qc1+ {[%clk 0:00:21.5]} 36.
Kh2 {[%clk 0:00:25.9]} 36... Qf4+ {[%clk 0:00:21.4]} 37. Kg1 {[%clk 0:00:26.5]}
37... Qc1+ {[%clk 0:00:20.6]} 1/2-1/2

[Event "Early-Titled-Tuesday-Blitz-June-18-2024"]
[Site "Chess.com"]
[Date "2024.06.18"]
[Round "4"]
[White "Zampronha1971"]
[Black "Longstom"]
[Result "0-1"]
[WhiteElo "2391"]
[BlackElo "2236"]
[TimeControl "180+1"]
[EndTime "8:40:47 PDT"]
[Termination "Longstom won on time"]

1. e4 {[%clk 0:03:00.9]} 1... e5 {[%clk 0:02:59.4]} 2. Nf3 {[%clk 0:03:00.8]}
2... Nc6 {[%clk 0:02:59.5]} 3. d4 {[%clk 0:03:01.2]} 3... exd4 {[%clk
0:02:59.3]} 4. Nxd4 {[%clk 0:03:02.1]} 4... Qf6 {[%clk 0:02:57.1]} 5. Be3 {[%clk
0:02:59.1]} 5... Bc5 {[%clk 0:02:52.7]} 6. c3 {[%clk 0:02:59.1]} 6... d6 {[%clk
0:02:49.3]} 7. Be2 {[%clk 0:02:46.8]} 7... Qe7 {[%clk 0:02:44.9]} 8. O-O {[%clk
0:02:45.4]} 8... Bb6 {[%clk 0:02:41]} 9. Nxc6 {[%clk 0:02:32.1]} 9... bxc6
{[%clk 0:02:41.5]} 10. Bxb6 {[%clk 0:02:30.4]} 10... axb6 {[%clk 0:02:42.1]} 11.
e5 {[%clk 0:02:28.2]} 11... Qxe5 {[%clk 0:02:35.6]} 12. Bf3 {[%clk 0:02:27.5]}
12... Qc5 {[%clk 0:02:31.4]} 13. Re1+ {[%clk 0:02:21.6]} 13... Be6 {[%clk
0:02:30.8]} 14. Nd2 {[%clk 0:02:15]} 14... Ne7 {[%clk 0:02:30]} 15. Ne4 {[%clk
0:02:12.8]} 15... Qb5 {[%clk 0:02:23.2]} 16. a4 {[%clk 0:01:52.2]} 16... Qxb2
{[%clk 0:02:12.3]} 17. Nxd6+ {[%clk 0:01:42.3]} 17... cxd6 {[%clk 0:02:08.5]}
18. Qxd6 {[%clk 0:01:43.2]} 18... Rd8 {[%clk 0:01:33]} 19. Bxc6+ {[%clk
0:01:39.5]} 19... Nxc6 {[%clk 0:01:33.1]} 20. Qxc6+ {[%clk 0:01:40]} 20... Ke7
{[%clk 0:01:33.1]} 21. f4 {[%clk 0:01:27.6]} 21... Rd6 {[%clk 0:01:24.9]} 22.
Qc7+ {[%clk 0:01:23.7]} 22... Rd7 {[%clk 0:01:25]} 23. Qe5 {[%clk 0:01:21.1]}
23... Rd2 {[%clk 0:00:57.2]} 24. Qg5+ {[%clk 0:01:13.3]} 24... Kd7 {[%clk
0:00:52.3]} 25. Qxg7 {[%clk 0:01:10]} 25... Re8 {[%clk 0:00:39.6]} 26. Rad1
{[%clk 0:01:06.2]} 26... Qc2 {[%clk 0:00:38.4]} 27. Rxd2+ {[%clk 0:01:02.4]}
27... Qxd2 {[%clk 0:00:39.3]} 28. Qe5 {[%clk 0:01:00.3]} 28... Qd6 {[%clk
0:00:37.7]} 29. Qb5+ {[%clk 0:00:48.1]} 29... Qc6 {[%clk 0:00:38.1]} 30. Rd1+
{[%clk 0:00:47.5]} 30... Kc7 {[%clk 0:00:38.5]} 31. Qe5+ {[%clk 0:00:46.7]}
31... Kb7 {[%clk 0:00:39.2]} 32. Kh1 {[%clk 0:00:33.8]} 32... Bb3 {[%clk
0:00:36.3]} 0-1

[Event "Early-Titled-Tuesday-Blitz-June-18-2024"]
[Site "Chess.com"]
[Date "2024.06.18"]
[Round "4"]
[White "LLariMarc"]
[Black "gpsji27"]
[Result "0-1"]
[WhiteElo "2494"]
[BlackElo "2332"]
[TimeControl "180+1"]
[EndTime "8:40:48 PDT"]
[Termination "gpsji27 won by checkmate"]

1. d4 {[%clk 0:02:58.9]} 1... d5 {[%clk 0:02:59.7]} 2. Bf4 {[%clk 0:02:59.3]}
2... c5 {[%clk 0:02:59.2]} 3. c3 {[%clk 0:02:59.7]} 3... Nc6 {[%clk 0:02:53]} 4.
e3 {[%clk 0:02:59.4]} 4... Nf6 {[%clk 0:02:52.2]} 5. Nd2 {[%clk 0:02:59.3]} 5...
Bf5 {[%clk 0:02:51]} 6. Ngf3 {[%clk 0:02:59]} 6... e6 {[%clk 0:02:51.2]} 7. Be2
{[%clk 0:02:51.8]} 7... Bd6 {[%clk 0:02:50.6]} 8. Bxd6 {[%clk 0:02:51.4]} 8...
Qxd6 {[%clk 0:02:51.5]} 9. O-O {[%clk 0:02:50.7]} 9... O-O {[%clk 0:02:50.3]}
10. a3 {[%clk 0:02:36.4]} 10... Rfc8 {[%clk 0:02:45]} 11. Rc1 {[%clk 0:02:35.3]}
11... h6 {[%clk 0:02:37.6]} 12. Re1 {[%clk 0:02:32.6]} 12... a6 {[%clk
0:02:27.2]} 13. Nf1 {[%clk 0:02:28.4]} 13... Ne4 {[%clk 0:02:23.1]} 14. Ng3
{[%clk 0:02:26.9]} 14... Bg6 {[%clk 0:02:21.2]} 15. Nxe4 {[%clk 0:02:25.7]}
15... Bxe4 {[%clk 0:02:22.1]} 16. Bd3 {[%clk 0:02:24.8]} 16... Bxd3 {[%clk
0:02:13.7]} 17. Qxd3 {[%clk 0:02:15.5]} 17... c4 {[%clk 0:02:14.6]} 18. Qe2
{[%clk 0:02:08.6]} 18... Na5 {[%clk 0:02:14.6]} 19. e4 {[%clk 0:02:05.2]} 19...
Nb3 {[%clk 0:02:14.6]} 20. Rcd1 {[%clk 0:01:59.1]} 20... b5 {[%clk 0:02:13.7]}
21. e5 {[%clk 0:01:42.5]} 21... Qe7 {[%clk 0:02:02.8]} 22. h4 {[%clk 0:01:41.1]}
22... a5 {[%clk 0:02:02]} 23. g3 {[%clk 0:01:33.2]} 23... b4 {[%clk 0:02:01.2]}
24. axb4 {[%clk 0:01:32.3]} 24... axb4 {[%clk 0:02:02.1]} 25. Nd2 {[%clk
0:01:32.8]} 25... Ra2 {[%clk 0:01:56.2]} 26. Nxb3 {[%clk 0:01:26.9]} 26... cxb3
{[%clk 0:01:57.1]} 27. cxb4 {[%clk 0:00:46.7]} 27... Rc2 {[%clk 0:01:47.6]} 28.
Qd3 {[%clk 0:00:41]} 28... Raxb2 {[%clk 0:01:47.1]} 29. Ra1 {[%clk 0:00:38]}
29... g6 {[%clk 0:01:45.4]} 30. Reb1 {[%clk 0:00:34.9]} 30... Qxb4 {[%clk
0:01:39.6]} 31. Rxb2 {[%clk 0:00:32.7]} 31... Rxb2 {[%clk 0:01:40.5]} 32. h5
{[%clk 0:00:30.8]} 32... Rd2 {[%clk 0:01:23.3]} 33. Qf3 {[%clk 0:00:24.2]} 33...
Ra2 {[%clk 0:01:14.8]} 34. Rc1 {[%clk 0:00:11.3]} 34... b2 {[%clk 0:00:58.7]}
35. Rc8+ {[%clk 0:00:11]} 35... Qf8 {[%clk 0:00:58.8]} 36. Rxf8+ {[%clk
0:00:08.1]} 36... Kxf8 {[%clk 0:00:59.7]} 37. hxg6 {[%clk 0:00:02.8]} 37...
b1=Q+ {[%clk 0:00:59.9]} 38. Kg2 {[%clk 0:00:03.2]} 38... Qxg6 {[%clk
0:01:00.6]} 39. Qb3 {[%clk 0:00:02]} 39... Qe4+ {[%clk 0:01:00.8]} 40. Kh3
{[%clk 0:00:02.1]} 40... Rxf2 {[%clk 0:01:00.6]} 41. Qb8+ {[%clk 0:00:01.3]}
41... Kg7 {[%clk 0:01:00.8]} 42. Qf8+ {[%clk 0:00:02.1]} 42... Kxf8 {[%clk
0:01:00.9]} 43. g4 {[%clk 0:00:03]} 43... Qh1+ {[%clk 0:01:01]} 44. Kg3 {[%clk
0:00:02.9]} 44... Qh2# {[%clk 0:01:01.9]} 0-1

[Event "Early-Titled-Tuesday-Blitz-June-18-2024"]
[Site "Chess.com"]
[Date "2024.06.18"]
[Round "4"]
[White "ALRS-SPS"]
[Black "Seppppppy"]
[Result "1-0"]
[WhiteElo "2370"]
[BlackElo "2185"]
[TimeControl "180+1"]
[EndTime "8:40:48 PDT"]
[Termination "ALRS-SPS won on time"]

1. e4 {[%clk 0:03:00.9]} 1... e5 {[%clk 0:02:55]} 2. Nf3 {[%clk 0:03:00.5]} 2...
Nc6 {[%clk 0:02:55.5]} 3. Bb5 {[%clk 0:02:59.9]} 3... a6 {[%clk 0:02:55.5]} 4.
Ba4 {[%clk 0:02:59.6]} 4... Bc5 {[%clk 0:02:55.1]} 5. O-O {[%clk 0:02:58.3]}
5... Nge7 {[%clk 0:02:55.2]} 6. c3 {[%clk 0:02:49.7]} 6... Ng6 {[%clk
0:02:55.2]} 7. d4 {[%clk 0:02:46.3]} 7... Ba7 {[%clk 0:02:55.5]} 8. Re1 {[%clk
0:02:37.3]} 8... O-O {[%clk 0:02:54.8]} 9. Bc2 {[%clk 0:02:26.1]} 9... d6 {[%clk
0:02:53.7]} 10. h3 {[%clk 0:02:24.9]} 10... b5 {[%clk 0:02:42.7]} 11. a4 {[%clk
0:02:22]} 11... b4 {[%clk 0:02:41.6]} 12. d5 {[%clk 0:02:11.7]} 12... Nce7
{[%clk 0:02:41.6]} 13. cxb4 {[%clk 0:02:10.7]} 13... f5 {[%clk 0:02:41.9]} 14.
Nc3 {[%clk 0:02:04.9]} 14... f4 {[%clk 0:02:33.2]} 15. b5 {[%clk 0:02:00.8]}
15... Bd7 {[%clk 0:02:25.4]} 16. Qe2 {[%clk 0:01:56.2]} 16... Qc8 {[%clk
0:02:24]} 17. Kh2 {[%clk 0:01:55]} 17... axb5 {[%clk 0:02:06.3]} 18. Nxb5 {[%clk
0:01:54.4]} 18... Bxb5 {[%clk 0:02:06.2]} 19. axb5 {[%clk 0:01:53.4]} 19... Bxf2
{[%clk 0:02:06.2]} 20. Rxa8 {[%clk 0:01:47.2]} 20... Bg3+ {[%clk 0:02:06.1]} 21.
Kh1 {[%clk 0:01:46.8]} 21... Qxa8 {[%clk 0:02:06.6]} 22. Rf1 {[%clk 0:01:40.1]}
22... Qb7 {[%clk 0:01:22.7]} 23. Bd2 {[%clk 0:01:23.8]} 23... Rb8 {[%clk
0:01:20.1]} 24. Bd3 {[%clk 0:01:23.4]} 24... Kh8 {[%clk 0:01:16.2]} 25. Rc1
{[%clk 0:01:23.3]} 25... h6 {[%clk 0:00:57.7]} 26. Ba5 {[%clk 0:01:19.5]} 26...
Rc8 {[%clk 0:00:52.8]} 27. b4 {[%clk 0:01:16.2]} 27... Nf8 {[%clk 0:00:48.5]}
28. Rc3 {[%clk 0:01:06.9]} 28... g5 {[%clk 0:00:45.3]} 29. Qc2 {[%clk
0:01:06.1]} 29... g4 {[%clk 0:00:18.3]} 30. hxg4 {[%clk 0:01:03.9]} 30... Re8
{[%clk 0:00:15.3]} 31. Rxc7 {[%clk 0:01:01.4]} 31... Qb8 {[%clk 0:00:15.2]} 32.
b6 {[%clk 0:00:50.8]} 32... h5 {[%clk 0:00:12.1]} 33. gxh5 {[%clk 0:00:47.2]}
33... Qd8 {[%clk 0:00:10.5]} 34. Kg1 {[%clk 0:00:44.5]} 34... Nh7 {[%clk
0:00:05.3]} 35. b7 {[%clk 0:00:43.6]} 35... Nf6 {[%clk 0:00:03]} 36. Rc8 {[%clk
0:00:37.4]} 1-0

[Event "Early-Titled-Tuesday-Blitz-June-18-2024"]
[Site "Chess.com"]
[Date "2024.06.18"]
[Round "4"]
[White "stasOR4ik"]
[Black "Ranindu2003"]
[Result "1-0"]
[WhiteElo "2452"]
[BlackElo "2687"]
[TimeControl "180+1"]
[EndTime "8:40:51 PDT"]
[Termination "stasOR4ik won by resignation"]

1. e4 {[%clk 0:03:00.9]} 1... e5 {[%clk 0:03:00.4]} 2. Nf3 {[%clk 0:03:00]} 2...
Nc6 {[%clk 0:03:01.1]} 3. Bb5 {[%clk 0:03:00]} 3... a6 {[%clk 0:03:01.4]} 4. Ba4
{[%clk 0:03:00.3]} 4... Nf6 {[%clk 0:03:01.8]} 5. Nc3 {[%clk 0:03:00.5]} 5... d6
{[%clk 0:02:57.2]} 6. Bxc6+ {[%clk 0:02:56.3]} 6... bxc6 {[%clk 0:02:55.6]} 7.
d4 {[%clk 0:02:56.9]} 7... exd4 {[%clk 0:02:55.8]} 8. Nxd4 {[%clk 0:02:56.4]}
8... c5 {[%clk 0:02:56.4]} 9. Nc6 {[%clk 0:02:55.5]} 9... Qd7 {[%clk 0:02:56.5]}
10. Na5 {[%clk 0:02:55.7]} 10... Be7 {[%clk 0:02:53.4]} 11. O-O {[%clk 0:02:55]}
11... O-O {[%clk 0:02:52.4]} 12. Bf4 {[%clk 0:02:55.2]} 12... Qe6 {[%clk
0:02:50.2]} 13. Re1 {[%clk 0:02:53.3]} 13... Rd8 {[%clk 0:02:42.6]} 14. Qf3
{[%clk 0:02:50.3]} 14... Ng4 {[%clk 0:02:18.4]} 15. Nc6 {[%clk 0:02:24.2]} 15...
Re8 {[%clk 0:02:13.5]} 16. Nxe7+ {[%clk 0:02:17.7]} 16... Qxe7 {[%clk
0:02:05.2]} 17. e5 {[%clk 0:02:12]} 17... Be6 {[%clk 0:01:46.4]} 18. exd6 {[%clk
0:02:03.2]} 18... cxd6 {[%clk 0:01:47.3]} 19. h3 {[%clk 0:01:54.2]} 19... Nf6
{[%clk 0:01:43.4]} 20. Bg5 {[%clk 0:01:51.5]} 20... h6 {[%clk 0:01:41.4]} 21.
Bxf6 {[%clk 0:01:49]} 21... Qxf6 {[%clk 0:01:42.3]} 22. Qxf6 {[%clk 0:01:48]}
22... gxf6 {[%clk 0:01:43.2]} 23. Ne4 {[%clk 0:01:48.2]} 23... Kg7 {[%clk
0:01:42.7]} 24. Nxd6 {[%clk 0:01:46.9]} 24... Red8 {[%clk 0:01:43.3]} 25. Ne4
{[%clk 0:01:42.8]} 25... c4 {[%clk 0:01:42.3]} 26. Rad1 {[%clk 0:01:39.7]} 26...
Bf5 {[%clk 0:01:41.6]} 27. f3 {[%clk 0:01:24.5]} 27... Rab8 {[%clk 0:01:39.7]}
28. b3 {[%clk 0:01:09.9]} 28... Rbc8 {[%clk 0:01:23.6]} 29. bxc4 {[%clk
0:00:55.2]} 29... Rxd1 {[%clk 0:01:20.9]} 30. Rxd1 {[%clk 0:00:53.6]} 30... Bxe4
{[%clk 0:01:21.8]} 31. fxe4 {[%clk 0:00:52.5]} 31... Rxc4 {[%clk 0:01:22.4]} 32.
Rd6 {[%clk 0:00:44.3]} 32... a5 {[%clk 0:01:22.1]} 33. Rd5 {[%clk 0:00:39.9]}
33... a4 {[%clk 0:01:21.3]} 34. Ra5 {[%clk 0:00:37.9]} 34... Rxe4 {[%clk
0:01:20.9]} 35. Kf2 {[%clk 0:00:35.5]} 35... Kg6 {[%clk 0:01:20.7]} 36. c3
{[%clk 0:00:32.3]} 36... f5 {[%clk 0:01:20.3]} 37. Kf3 {[%clk 0:00:29.8]} 37...
Rc4 {[%clk 0:01:20.1]} 38. Ke2 {[%clk 0:00:24.8]} 38... f6 {[%clk 0:01:12.2]}
39. Kd3 {[%clk 0:00:24.9]} 39... Rf4 {[%clk 0:01:12]} 40. c4 {[%clk 0:00:23.3]}
40... Rf2 {[%clk 0:01:10.5]} 41. Rxa4 {[%clk 0:00:22.9]} 41... Rxg2 {[%clk
0:01:10.7]} 42. c5 {[%clk 0:00:23.5]} 42... Rg3+ {[%clk 0:00:57.6]} 43. Kd2
{[%clk 0:00:23.8]} 43... Rxh3 {[%clk 0:00:58.5]} 44. c6 {[%clk 0:00:23.9]} 44...
Kf7 {[%clk 0:00:54.5]} 45. c7 {[%clk 0:00:22.7]} 45... Rh2+ {[%clk 0:00:51.2]}
46. Kd3 {[%clk 0:00:18.5]} 46... Rh4 {[%clk 0:00:51.6]} 47. Rxh4 {[%clk
0:00:17.8]} 1-0

[Event "Early-Titled-Tuesday-Blitz-June-18-2024"]
[Site "Chess.com"]
[Date "2024.06.18"]
[Round "4"]
[White "Grebnev_A"]
[Black "Xavier_mompel"]
[Result "1/2-1/2"]
[WhiteElo "2690"]
[BlackElo "2440"]
[TimeControl "180+1"]
[EndTime "8:40:51 PDT"]
[Termination "Game drawn by repetition"]

1. Nf3 {[%clk 0:03:00.9]} 1... d5 {[%clk 0:02:58]} 2. e3 {[%clk 0:03:00.7]} 2...
Nf6 {[%clk 0:02:58.6]} 3. c4 {[%clk 0:02:59.7]} 3... e6 {[%clk 0:02:58.3]} 4.
Nc3 {[%clk 0:02:59.1]} 4... c6 {[%clk 0:02:56.5]} 5. b3 {[%clk 0:02:59]} 5...
Nbd7 {[%clk 0:02:55.8]} 6. Bb2 {[%clk 0:02:59.3]} 6... Be7 {[%clk 0:02:56.3]} 7.
d4 {[%clk 0:02:59.1]} 7... O-O {[%clk 0:02:55.7]} 8. Bd3 {[%clk 0:02:59.7]} 8...
b6 {[%clk 0:02:53.2]} 9. O-O {[%clk 0:02:59.8]} 9... Bb7 {[%clk 0:02:53.6]} 10.
Qe2 {[%clk 0:03:00]} 10... dxc4 {[%clk 0:02:53.1]} 11. bxc4 {[%clk 0:02:59.8]}
11... c5 {[%clk 0:02:53.5]} 12. Rad1 {[%clk 0:02:57.4]} 12... Rc8 {[%clk
0:02:42.9]} 13. d5 {[%clk 0:02:57.3]} 13... exd5 {[%clk 0:02:39.5]} 14. cxd5
{[%clk 0:02:58.2]} 14... Bd6 {[%clk 0:02:37.1]} 15. e4 {[%clk 0:02:54.7]} 15...
Re8 {[%clk 0:02:35.9]} 16. Bc4 {[%clk 0:02:54.3]} 16... Ne5 {[%clk 0:02:29.1]}
17. Nxe5 {[%clk 0:02:54.1]} 17... Bxe5 {[%clk 0:02:30]} 18. Qd3 {[%clk
0:02:49.8]} 18... Bxc3 {[%clk 0:02:21.5]} 19. Qxc3 {[%clk 0:02:50.7]} 19... Rxe4
{[%clk 0:02:20.6]} 20. Rfe1 {[%clk 0:02:47.3]} 20... Rxe1+ {[%clk 0:02:05]} 21.
Rxe1 {[%clk 0:02:48.2]} 21... Qd6 {[%clk 0:02:04.8]} 22. h3 {[%clk 0:02:43.2]}
22... a6 {[%clk 0:01:56.9]} 23. a4 {[%clk 0:02:42.5]} 23... b5 {[%clk
0:01:53.4]} 24. axb5 {[%clk 0:02:43.4]} 24... axb5 {[%clk 0:01:53.7]} 25. Bxb5
{[%clk 0:02:44.3]} 25... Qxd5 {[%clk 0:01:53.6]} 26. Bf1 {[%clk 0:02:45]} 26...
Re8 {[%clk 0:01:33]} 27. Rxe8+ {[%clk 0:02:28.6]} 27... Nxe8 {[%clk 0:01:33.9]}
28. Qg3 {[%clk 0:02:28.9]} 28... f6 {[%clk 0:01:22.8]} 29. Qb8 {[%clk
0:02:26.6]} 29... Kf7 {[%clk 0:01:18.6]} 30. f3 {[%clk 0:02:26.9]} 30... Nd6
{[%clk 0:01:10.3]} 31. Qc7+ {[%clk 0:02:27.1]} 31... Kg6 {[%clk 0:01:06.5]} 32.
Qa5 {[%clk 0:02:07.8]} 32... Nc4 {[%clk 0:01:00.4]} 33. Bxc4 {[%clk 0:02:00.3]}
33... Qxc4 {[%clk 0:01:01.3]} 34. Qd2 {[%clk 0:01:59.2]} 34... Bd5 {[%clk
0:00:47.3]} 35. Kh2 {[%clk 0:01:57]} 35... Kf7 {[%clk 0:00:44.3]} 36. Qe3 {[%clk
0:01:56.9]} 36... Qb3 {[%clk 0:00:41.6]} 37. Bc3 {[%clk 0:01:56.9]} 37... Qc4
{[%clk 0:00:38.6]} 38. Bb2 {[%clk 0:01:55.8]} 38... Qb3 {[%clk 0:00:38.1]} 39.
Qxc5 {[%clk 0:01:56.1]} 39... Qxb2 {[%clk 0:00:37.9]} 40. Qxd5+ {[%clk
0:01:56.6]} 40... Kf8 {[%clk 0:00:30.7]} 41. h4 {[%clk 0:01:54]} 41... Qb8+
{[%clk 0:00:29.3]} 42. Kh3 {[%clk 0:01:54]} 42... Qc8+ {[%clk 0:00:29.6]} 43. g4
{[%clk 0:01:52.8]} 43... Qc3 {[%clk 0:00:28.8]} 44. Qe4 {[%clk 0:01:49.3]} 44...
Kf7 {[%clk 0:00:28.9]} 45. h5 {[%clk 0:01:48.7]} 45... h6 {[%clk 0:00:25.4]} 46.
Kg3 {[%clk 0:01:48.8]} 46... Qe5+ {[%clk 0:00:18]} 47. Qxe5 {[%clk 0:01:46.4]}
47... fxe5 {[%clk 0:00:18.9]} 48. Kf2 {[%clk 0:01:46.4]} 48... g6 {[%clk
0:00:13.3]} 49. hxg6+ {[%clk 0:01:41.7]} 49... Kxg6 {[%clk 0:00:14.2]} 50. Ke3
{[%clk 0:01:42.6]} 50... Kf6 {[%clk 0:00:13.6]} 51. Kd3 {[%clk 0:01:42.2]} 51...
Kf7 {[%clk 0:00:06.8]} 52. Kc3 {[%clk 0:01:42]} 52... Ke6 {[%clk 0:00:06.5]} 53.
Kc4 {[%clk 0:01:39.8]} 53... Kd6 {[%clk 0:00:06.3]} 54. Kd3 {[%clk 0:01:40.3]}
54... Kd5 {[%clk 0:00:05.8]} 55. Ke3 {[%clk 0:01:40.7]} 55... Kd6 {[%clk
0:00:05.8]} 56. Kf2 {[%clk 0:01:41]} 56... Kd5 {[%clk 0:00:05.2]} 57. Ke3 {[%clk
0:01:39.6]} 57... Kd6 {[%clk 0:00:05.2]} 58. Kd2 {[%clk 0:01:36.2]} 58... Kd5
{[%clk 0:00:05.2]} 59. Kd3 {[%clk 0:01:36.9]} 59... Kd6 {[%clk 0:00:05.7]} 60.
Kc4 {[%clk 0:01:37.5]} 60... Kc6 {[%clk 0:00:05.6]} 61. Kc3 {[%clk 0:01:36.6]}
61... Kc5 {[%clk 0:00:05.6]} 62. Kd3 {[%clk 0:01:36.3]} 62... Kd5 {[%clk
0:00:06.1]} 63. Ke3 {[%clk 0:01:37]} 1/2-1/2

[Event "Early-Titled-Tuesday-Blitz-June-18-2024"]
[Site "Chess.com"]
[Date "2024.06.18"]
[Round "4"]
[White "Crazy_girl99"]
[Black "blitzking1729"]
[Result "0-1"]
[WhiteElo "2614"]
[BlackElo "2828"]
[TimeControl "180+1"]
[EndTime "8:40:53 PDT"]
[Termination "blitzking1729 won by checkmate"]

1. Nf3 {[%clk 0:02:48.8]} 1... g6 {[%clk 0:02:55]} 2. e4 {[%clk 0:02:47]} 2...
c5 {[%clk 0:02:53.3]} 3. d4 {[%clk 0:02:46.7]} 3... cxd4 {[%clk 0:02:53.7]} 4.
Nxd4 {[%clk 0:02:47]} 4... Nc6 {[%clk 0:02:53.3]} 5. c4 {[%clk 0:02:47]} 5...
Bg7 {[%clk 0:02:53.3]} 6. Nc2 {[%clk 0:02:45.4]} 6... Nf6 {[%clk 0:02:53.2]} 7.
Nc3 {[%clk 0:02:45.6]} 7... O-O {[%clk 0:02:52.9]} 8. Be2 {[%clk 0:02:45.7]}
8... d6 {[%clk 0:02:51.2]} 9. O-O {[%clk 0:02:45.5]} 9... Be6 {[%clk 0:02:51.8]}
10. Be3 {[%clk 0:02:44.5]} 10... Qa5 {[%clk 0:02:48.1]} 11. a3 {[%clk
0:02:34.5]} 11... Rfc8 {[%clk 0:02:45.9]} 12. Rc1 {[%clk 0:02:16.2]} 12... Ne5
{[%clk 0:02:42.8]} 13. b4 {[%clk 0:02:13.9]} 13... Qd8 {[%clk 0:02:39.9]} 14. f4
{[%clk 0:01:46.2]} 14... Nxc4 {[%clk 0:02:37.7]} 15. Bd4 {[%clk 0:01:46.4]}
15... Bd7 {[%clk 0:02:12.2]} 16. e5 {[%clk 0:01:09.7]} 16... Ne8 {[%clk
0:02:08.1]} 17. Bf3 {[%clk 0:00:51.4]} 17... Bc6 {[%clk 0:01:59.5]} 18. Bxc6
{[%clk 0:00:46.2]} 18... Rxc6 {[%clk 0:01:56.7]} 19. b5 {[%clk 0:00:45]} 19...
Rcc8 {[%clk 0:01:55.7]} 20. Re1 {[%clk 0:00:38.7]} 20... dxe5 {[%clk 0:01:51]}
21. fxe5 {[%clk 0:00:39.6]} 21... Nc7 {[%clk 0:01:50.8]} 22. Nb4 {[%clk
0:00:36.2]} 22... Ne6 {[%clk 0:01:38.4]} 23. Ncd5 {[%clk 0:00:22.4]} 23... Nxa3
{[%clk 0:01:31.7]} 24. Rxc8 {[%clk 0:00:18.4]} 24... Rxc8 {[%clk 0:01:32.6]} 25.
Bxa7 {[%clk 0:00:18.7]} 25... Nxb5 {[%clk 0:01:30.2]} 26. Bb6 {[%clk 0:00:18.4]}
26... Qe8 {[%clk 0:01:29.9]} 27. Qa4 {[%clk 0:00:11.3]} 27... Nbd4 {[%clk
0:01:25]} 28. Qxe8+ {[%clk 0:00:09.9]} 28... Rxe8 {[%clk 0:01:25.6]} 29. Kf2
{[%clk 0:00:06.9]} 29... Nc6 {[%clk 0:01:24.6]} 30. Nd3 {[%clk 0:00:04.5]} 30...
Kf8 {[%clk 0:01:15.7]} 31. Nc5 {[%clk 0:00:04.6]} 31... Nxc5 {[%clk 0:01:12.9]}
32. Bxc5 {[%clk 0:00:05.5]} 32... Bxe5 {[%clk 0:01:12.8]} 33. Nxe7 {[%clk
0:00:04.3]} 33... Rxe7 {[%clk 0:01:13.2]} 34. Bxe7+ {[%clk 0:00:02.7]} 34...
Kxe7 {[%clk 0:01:13.5]} 35. g3 {[%clk 0:00:03.3]} 35... Kf6 {[%clk 0:01:12.1]}
36. Rb1 {[%clk 0:00:03.7]} 36... b6 {[%clk 0:01:11.9]} 37. Kf3 {[%clk
0:00:03.7]} 37... Bd4 {[%clk 0:01:12.1]} 38. Ke4 {[%clk 0:00:03.5]} 38... Bc5
{[%clk 0:01:12.8]} 39. Kd5 {[%clk 0:00:03.9]} 39... Ne7+ {[%clk 0:01:12.2]} 40.
Ke4 {[%clk 0:00:03.5]} 40... h5 {[%clk 0:01:12.7]} 41. h3 {[%clk 0:00:02.9]}
41... Kg5 {[%clk 0:01:09.6]} 42. Rf1 {[%clk 0:00:01.3]} 42... Nf5 {[%clk
0:01:09.7]} 43. Kf3 {[%clk 0:00:01]} 43... h4 {[%clk 0:01:07.3]} 44. g4 {[%clk
0:00:01.3]} 44... Ng3 {[%clk 0:01:06.9]} 45. Kg2 {[%clk 0:00:02]} 45... Nxf1
{[%clk 0:01:06.7]} 46. Kxf1 {[%clk 0:00:02.9]} 46... f5 {[%clk 0:01:06.6]} 47.
Kg2 {[%clk 0:00:03.8]} 47... fxg4 {[%clk 0:01:06.9]} 48. hxg4 {[%clk 0:00:03.8]}
48... Kxg4 {[%clk 0:01:07.8]} 49. Kh1 {[%clk 0:00:03.6]} 49... b5 {[%clk
0:01:08.5]} 50. Kh2 {[%clk 0:00:04.5]} 50... b4 {[%clk 0:01:08.9]} 51. Kg2
{[%clk 0:00:05]} 51... b3 {[%clk 0:01:09.4]} 52. Kh2 {[%clk 0:00:05.9]} 52... b2
{[%clk 0:01:09.7]} 53. Kg2 {[%clk 0:00:06.1]} 53... b1=Q {[%clk 0:01:09.9]} 54.
Kh2 {[%clk 0:00:07]} 54... Qg1# {[%clk 0:01:10.2]} 0-1